[Event "44th Chess Olympiad Open 2022"]
[Site "Chennai"]
[Date "2022.08.06"]
[Round "8.16"]
[White "Almeida Quintana, Omar"]
[Black "Ribera Veganzones, Josep Maria"]
[Result "0-1"]
[WhiteElo "2523"]
[BlackElo "2228"]
[Annotator "TA"]
[PlyCount "118"]
[EventDate "2022.??.??"]
[TimeControl "60"]

{[%evp 11,118,14,16,-2,27,11,18,14,42,37,36,33,41,44,46,46,51,15,21,0,13,18,26,
55,39,15,60,50,166,140,198,193,175,159,174,158,235,240,223,197,205,211,233,202,
255,247,250,213,299,215,221,124,124,82,62,-67,-94,-87,-96,-81,-53,-53,-53,-97,
-89,-422,-418,-404,-404,-425,-416,-520,-506,-506,-496,-609,-602,-583,-569,-704,
-706,-705,-407,-690,-674,-681,-489,-670,-627,-681,-692,-565,-470,-754,-752,
-720,-694,-954,-919,-29966,-29967,-29985,-29986,-29991,-29966,-29942,-1127,
-29940,-4826]} 1. d4 {[%emt 0:00:09]} Nf6 {[%emt 0:00:18]} 2. Nf3 {[%emt 0:00:
00]} g6 {[%emt 0:00:36]} 3. Bf4 {[%emt 0:00:13]} Bg7 {[%emt 0:00:35]} 4. e3 {
[%emt 0:00:04]} O-O {[%emt 0:00:43]} 5. h3 {[%emt 0:00:06]} d6 {[%emt 0:00:32]}
6. Be2 {[%emt 0:00:16]} Nc6 {[%emt 0:00:24][%cal Ye7e5] 6...c5 is the recent
fashion.} 7. c3 {[%emt 0:01:51][%cal Yc2c3,Yc3c4,Yc4c5] A48:1 d4 Nf6 2 Nf3 g6:
Torre, London and Colle Systems.} Nd7 {[%emt 0:02:09]} 8. O-O {[%emt 0:07:37]}
e5 {[%emt 0:02:35]} 9. Bh2 {[%emt 0:00:05] The position is equal.} e4 {[%emt 0:
04:54]} 10. Nfd2 {[%emt 0:01:21]} f5 {[%emt 0:02:06]} 11. c4 {[%emt 0:02:46]}
Nf6 {[%emt 0:03:36]} 12. Nc3 {[%emt 0:00:35]} Ne7 {[%emt 0:00:00]} 13. b4 {
[%emt 0:01:40]} g5 {[%emt 0:01:59]} 14. c5 {[%emt 0:00:40]} d5 {[%emt 0:02:03]}
15. Qb3 {[%emt 0:11:25]} (15. Nb5 $5 {[%cal Rb5c7]} Ne8 16. f3 $11) 15... Ng6 {
[%emt 0:03:17]} 16. f3 {[%emt 0:02:48]} Kh8 {[%emt 0:22:40]} 17. fxe4 {[%emt 0:
04:05]} fxe4 {[%emt 0:00:43]} 18. Rxf6 {[%emt 0:11:57] [#]} Bxf6 $146 {[%emt 0:
07:22]} ({Predecessor:} 18... Qxf6 19. Rf1 Nf4 20. Bxf4 gxf4 21. Rxf4 Qh6 22.
Rxf8+ Bxf8 23. Nxd5 Be6 24. Bc4 Bxd5 25. Bxd5 {1-0 (113) Afonasieva,A (2270)
-Strybuk,A (2228) Orsha 2021}) 19. Qxd5 {[%emt 0:00:12]} Qe7 {[%emt 0:05:24]} (
{Black should try} 19... Nf4 $1 $14 20. Qxd8 (20. Qxe4 $2 Re8 $19) (20. Bxf4
gxf4 21. Ndxe4 Bg7 $11) 20... Nxe2+ 21. Kf2 (21. Nxe2 Bxd8 22. Nxe4 g4 $14)
21... Bxd8+ 22. Kxe2 Bf5) 20. Qxe4 {[%emt 0:03:16]} ({Don't play} 20. Ndxe4 Rd8
21. Qb3 Bg7 $16) (20. Ncxe4 Nf4 21. Bxf4 (21. exf4 Be6 $17) 21... gxf4 22. Nxf6
(22. exf4 $2 Rd8 $19) 22... Rxf6 $11) 20... c6 {[%emt 0:02:53] Inhibits Nd5.} (
20... Re8 $16) 21. Bd6 $18 {[%emt 0:04:44]} Qxe4 {[%emt 0:00:00]} 22. Ndxe4 {
[%emt 0:00:34]} Be7 {[%emt 0:01:31]} 23. Bh5 $36 {[%emt 0:00:00] White is on
the roll.} g4 {[%emt 0:09:53]} (23... Bxd6 $16 24. cxd6 Kg7) 24. hxg4 {[%emt 0:
01:37][%cal Yh3g4,Yg4g5,Yg5f6]} ({Don't do} 24. Bxg4 $6 Bxg4 25. hxg4 Rae8)
24... Rf7 {[%emt 0:03:05]} 25. Bxg6 {[%emt 0:00:00]} hxg6 {[%emt 0:00:11]} 26.
g5 {[%emt 0:00:38]} Bf5 {[%emt 0:04:18]} 27. Rf1 {[%emt 0:04:34]} Kg8 {[%emt 0:
00:41]} 28. Nf6+ {[%emt 0:00:16]} Bxf6 {[%emt 0:03:12]} 29. gxf6 {[%emt 0:00:
07]} Re8 {[%emt 0:01:05]} (29... Bd3 {is a better defense.}) 30. Be7 {[%emt 0:
00:26]} Rh7 {[%emt 0:00:20]} 31. Rf4 {[%emt 0:01:18]} (31. Kf2 $18) 31... Kf7
$16 {[%emt 0:00:23]} 32. g4 {[%emt 0:00:00]} Bd3 {[%emt 0:00:12]} 33. e4 {
[%emt 0:06:02]} (33. Ne4 $14 Bxe4 34. Rxe4) 33... Reh8 $1 $15 {[%emt 0:01:55]}
34. Rf3 {[%emt 0:03:50]} Rh1+ {[%emt 0:00:00]} 35. Kf2 {[%emt 0:00:46]} Rf1+ {
[%emt 0:00:49]} 36. Ke3 {[%emt 0:01:32] Threatens to win with Rg3.} Rxf3+ {
[%emt 0:00:09]} 37. Kxf3 {[%emt 0:00:00] Endgame KRB-KBN} Rh3+ $1 {[%emt 0:00:
51]} 38. Kf4 $2 {[%emt 0:00:00]} (38. Kg2 $17 {was the crucial defense.} Bf1+
39. Kxf1 Rxc3 40. Ke2) 38... Bc4 $19 {[%emt 0:03:48]} 39. Nd1 {[%emt 0:00:08]}
Be2 $1 {[%emt 0:00:00]} 40. Nb2 {[%emt 0:00:07] [#]} Ra3 $1 {[%emt 0:02:08]}
41. d5 {[%emt 0:00:00]} Rxa2 {[%emt 0:06:38]} 42. d6 {[%emt 0:01:08] White
wants to mate with d7.} Ke6 {[%emt 0:02:24]} (42... Rxb2 43. d7 Rd2 44. Bd6
Rxd6 45. cxd6 g5+ 46. Kxg5 Ke6 47. d8=Q) 43. d7 {[%emt 0:12:49]} Kxd7 {[%emt 0:
00:51]} 44. Bd6 {[%emt 0:00:04] And now f7 would win.} Ke6 {[%emt 0:05:21]} ({
Inferior is} 44... Rxb2 45. f7 Rb3 46. f8=Q $11) 45. Be5 {[%emt 0:00:21]} Ra3 {
[%emt 0:03:36]} 46. Bd4 {[%emt 0:07:39]} Rf3+ {[%emt 0:02:44]} 47. Kg5 {
[%emt 0:00:05]} Rg3 {[%emt 0:00:17]} 48. Kf4 {[%emt 0:00:19]} Rxg4+ {[%emt 0:
01:08]} 49. Ke3 {[%emt 0:00:01]} Bb5 {[%emt 0:00:22] White must now prevent ...
g5.} 50. Kf3 {[%emt 0:00:29]} Rh4 {[%emt 0:00:18]} 51. Bf2 {[%emt 0:02:31]} Rh1
{[%emt 0:00:00]} 52. Bd4 {[%emt 0:00:34]} (52. e5 $142) 52... g5 {[%emt 0:03:
04]} 53. Kg4 {[%emt 0:02:01]} Re1 {[%emt 0:00:17]} 54. Kxg5 {[%emt 0:01:00]}
Rxe4 {[%emt 0:00:00]} 55. Bc3 {[%emt 0:00:05]} Be2 {[%emt 0:01:29]} 56. Na4 {
[%emt 0:04:21]} Rg4+ {[%emt 0:00:33]} 57. Kh6 {[%emt 0:00:07]} Bb5 {[%emt 0:00:
57]} 58. Nb2 {[%emt 0:00:10]} Rg3 {[%emt 0:00:58]} (58... Kf7 $142 59. Kh5 Be2
60. Nd3 Rg3+ 61. Kh4 Rxd3 62. Be1 Kxf6 63. Bg3 {[#]} Rxg3 $1 64. Kxg3 Ke5 65.
Kf2 Bd3 66. Kf3 Kd5 67. Kf4 Kd4 68. Kg5 Kc4 69. Kf4 Kxb4 70. Ke3 Kc3 71. Kf3 a5
72. Kf4 Kc4 73. Kg4 a4 74. Kh5 a3 75. Kg5 a2 76. Kh4 a1=Q 77. Kg5 Qd4 78. Kh5
Qg1 79. Kh4 Qg2 80. Kh5 Qg3 81. Kh6 Qg6#) 59. Bd4 {[%emt 0:00:25]} Kf7 {
[%emt 0:00:39] Never resign too early! Weighted Error Value: White=0.58/
Black=0.29 (precise)} 0-1

[Event "44th Chess Olympiad Open 2022"]
[Site "Chennai"]
[Date "2022.08.06"]
[Round "8.16"]
[White "Henderson de La Fuente, Lance"]
[Black "Quesada Perez, Yasser"]
[Result "1/2-1/2"]
[WhiteElo "2490"]
[BlackElo "2568"]
[Annotator "TA"]
[PlyCount "170"]
[EventDate "2022.??.??"]
[TimeControl "60"]

{[%evp 37,170,-40,-39,-36,-39,-43,-43,-43,-43,-41,-21,-18,-22,-30,-19,-26,-14,
-6,-6,-24,-21,-27,-24,-27,-21,-23,-23,-25,-23,-23,-31,-22,-22,-23,-19,-16,-17,
-28,-35,-74,-20,-56,-64,-64,-60,-48,-56,-58,-55,-84,-51,-63,-16,-22,-19,-20,-8,
-8,0,-14,0,0,0,-38,-41,-55,-8,-8,-8,-13,-8,-8,-8,-8,-8,-8,-8,-8,-8,-8,0,-8,0,
-8,-8,-8,-8,-8,-8,-8,0,0,0,-8,0,0,0,0,0,0,0,0,0,0,0,0,0,0,0,0,0,0,0,0,0,0,0,0,
0,0,0,0,0,0,0,0,0,0,0,0,0,0,0,-8,0]} 1. e4 {[%emt 0:00:30]} e5 {[%emt 0:00:10]}
2. Nf3 {[%emt 0:00:08]} Nf6 {[%emt 0:00:05]} 3. Nxe5 {[%emt 0:01:24]} d6 {
[%emt 0:00:05]} 4. Nf3 {[%emt 0:00:11]} Nxe4 {[%emt 0:00:04]} 5. d3 {[%emt 0:
00:00]} Nf6 {[%emt 0:00:06]} 6. d4 {[%emt 0:00:19]} d5 {[%emt 0:00:08]} 7. Bd3
{[%emt 0:00:36]} Bd6 {[%emt 0:00:05]} 8. O-O {[%emt 0:00:38]} O-O {[%emt 0:00:
00]} 9. Bg5 {[%emt 0:00:38]} Bg4 {[%emt 0:00:09]} 10. Nbd2 {[%emt 0:00:52]}
Nbd7 {[%emt 0:00:11]} 11. c3 {[%emt 0:00:45]} c6 {[%emt 0:01:31]} 12. Qc2 {
[%emt 0:01:14]} Qc7 {[%emt 0:00:13]} 13. Rfe1 {[%emt 0:00:58]} Rfe8 {[%emt 0:
00:00]} 14. Bh4 {[%emt 0:01:45]} h6 {[%emt 0:05:20]} 15. Bg3 {[%emt 0:06:53]}
Nh5 {[%emt 0:05:14]} 16. Bh7+ {[%emt 0:01:55]} Kf8 {[%emt 0:01:34]} 17. Bf5 {
[%emt 0:00:49]} Bxf5 {[%emt 0:00:50]} 18. Qxf5 {[%emt 0:01:44]} Nxg3 {[%emt 0:
00:00]} 19. hxg3 {[%emt 0:01:01]} g6 {[%emt 0:03:17]} 20. Qc2 {[%emt 0:01:25]}
Kg7 {[%emt 0:04:21]} 21. Rxe8 {[%emt 0:00:54]} Rxe8 {[%emt 0:00:30]} 22. Re1 {
[%emt 0:00:10]} Qd8 {[%emt 0:01:34]} 23. Qd1 {[%emt 0:03:51]} b5 {[%emt 0:00:
00]} 24. Rxe8 {[%emt 0:00:49]} Qxe8 {[%emt 0:00:06]} 25. Qe1 {[%emt 0:02:41]}
Qe6 {[%emt 0:02:11]} 26. Kf1 {[%emt 0:01:19]} Nb6 {[%emt 0:11:05]} 27. Qxe6 {
[%emt 0:01:11]} fxe6 {[%emt 0:00:05]} 28. b3 {[%emt 0:01:07]} Kf6 {[%emt 0:00:
00]} 29. Ke2 {[%emt 0:01:25]} c5 {[%emt 0:01:56]} 30. dxc5 {[%emt 0:07:03]}
Bxc5 {[%emt 0:00:21]} 31. Ne1 {[%emt 0:00:36]} e5 {[%emt 0:02:39]} 32. f3 {
[%emt 0:02:38]} h5 {[%emt 0:03:19]} 33. Nd3 {[%emt 0:00:54]} Bd6 {[%emt 0:00:
00]} 34. Nf2 {[%emt 0:01:04]} a5 {[%emt 0:06:38]} 35. g4 {[%emt 0:03:18]} Ke6 {
[%emt 0:03:33]} 36. gxh5 {[%emt 0:01:03]} gxh5 {[%emt 0:00:09]} 37. Kd3 {
[%emt 0:01:25]} Bc5 {[%emt 0:04:04]} 38. Nh3 {[%emt 0:08:22]} a4 {[%emt 0:00:
00]} ({Better is} 38... Kf5 $17) 39. c4 {[%emt 0:03:07]} dxc4+ {[%emt 0:01:31]}
40. bxc4 {[%emt 0:00:06]} b4 $1 {[%emt 0:00:04]} 41. Ng5+ {[%emt 0:31:18]} Kf5
{[%emt 0:33:06]} 42. Nge4 {[%emt 0:00:53]} Nd7 {[%emt 0:02:02]} 43. Ng3+ {
[%emt 0:02:15]} Kg6 {[%emt 0:01:03]} 44. Ne2 {[%emt 0:03:39]} Kf6 {[%emt 0:00:
00]} (44... Bf8 $15 {is more appropriate.}) 45. Ne4+ {[%emt 0:07:38]} Ke6 {
[%emt 0:00:23]} 46. Kc2 {[%emt 0:03:50]} Be3 {[%emt 0:03:30]} 47. Kd3 {[%emt 0:
00:00]} Ba7 {[%emt 0:04:56]} 48. Kc2 {[%emt 0:01:08]} Be3 {[%emt 0:00:00]} 49.
Kd3 {[%emt 0:00:00]} Bh6 {[%emt 0:00:00]} 50. Kc2 {[%emt 0:00:00]} h4 {[%emt 0:
00:00]} 51. Kd3 {[%emt 0:00:00]} Bf8 {[%emt 0:00:00]} (51... Bf4 $15) 52. g3
$11 {[%emt 0:00:00]} hxg3 {[%emt 0:00:00]} (52... h3 $5 53. Ng5+ Kd6 54. Nxh3
e4+ 55. Kxe4 Kc5 $11) 53. N2xg3 {[%emt 0:00:00]} Nc5+ {[%emt 0:00:00]} 54.
Nxc5+ {[%emt 0:00:00]} Bxc5 {[%emt 0:00:00]} 55. Ne2 {[%emt 0:00:00]} Kf5 {
[%emt 0:00:00]} 56. Kc2 {[%emt 0:00:00]} Be3 {[%emt 0:03:38]} 57. Kd3 {[%emt 0:
00:00]} Bf2 {[%emt 0:01:14]} 58. Kc2 {[%emt 0:00:00]} Be3 {[%emt 0:03:22]} 59.
Kd3 {[%emt 0:00:00]} Bc5 {[%emt 0:00:40]} 60. Kc2 {[%emt 0:00:00]} Bf8 {
[%emt 0:00:10]} 61. Nc1 {[%emt 0:00:00]} e4 {[%emt 0:00:34]} 62. fxe4+ {
[%emt 0:00:00]} Kxe4 {[%emt 0:00:05]} 63. Nd3 {[%emt 0:00:00]} Kd4 {[%emt 0:00:
00]} 64. Nb2 {[%emt 0:00:00]} a3 {[%emt 0:00:07]} 65. Nd3 {[%emt 0:00:00]} Be7
{[%emt 0:00:57]} (65... b3+ {is more complex.} 66. axb3 a2 67. Kb2 Kxd3 68.
Kxa2 Kc2) 66. Nc1 {[%emt 0:00:00]} Kxc4 {[%emt 0:00:09]} 67. Nb3 {[%emt 0:00:
00]} Bg5 {[%emt 0:00:31]} 68. Na5+ {[%emt 0:00:00]} Kb5 {[%emt 0:00:11]} 69.
Nb3 {[%emt 0:00:00]} Kc4 {[%emt 0:01:25]} 70. Na5+ {[%emt 0:00:00]} Kd5 {
[%emt 0:00:16]} 71. Nb3 {[%emt 0:00:00]} Kc4 {[%emt 0:01:08]} 72. Na5+ {
[%emt 0:00:00]} Kb5 {[%emt 0:00:36]} 73. Nb3 {[%emt 0:00:00]} Bf6 {[%emt 0:00:
00]} 74. Kd3 {[%emt 0:00:00]} Bc3 {[%emt 0:00:19]} 75. Kc2 $1 {[%emt 0:00:00]}
Kc4 {[%emt 0:00:47]} 76. Na5+ {[%emt 0:00:00]} Kd4 {[%emt 0:00:18]} 77. Nb3+ {
[%emt 0:00:00]} Ke3 {[%emt 0:00:25]} 78. Nc1 {[%emt 0:00:00]} Bd4 {[%emt 0:00:
00]} 79. Nb3 {[%emt 0:00:00]} Bb6 {[%emt 0:00:04]} 80. Nc1 {[%emt 0:00:00]} Kd4
{[%emt 0:00:19]} 81. Nb3+ {[%emt 0:00:00]} Kc4 {[%emt 0:00:05]} 82. Nd2+ {
[%emt 0:00:00]} Kb5 {[%emt 0:00:04]} 83. Nb3 {[%emt 0:00:00]} Ka4 {[%emt 0:00:
00]} 84. Nc1 {[%emt 0:00:00]} Be3 {[%emt 0:01:55]} 85. Nb3 {[%emt 0:00:00]} Bb6
{[%emt 0:01:20]} 1/2-1/2

[Event "44th Chess Olympiad Open 2022"]
[Site "Chennai"]
[Date "2022.08.06"]
[Round "8.16"]
[White "De La Riva Aguado, Oscar"]
[Black "Ortiz Suarez, Isan Reynaldo"]
[Result "1/2-1/2"]
[WhiteElo "2424"]
[BlackElo "2526"]
[Annotator "TA"]
[PlyCount "66"]
[EventDate "2022.??.??"]
[TimeControl "60"]

{[%evp 16,66,12,8,28,31,12,0,0,0,0,0,0,-5,72,69,81,29,130,128,140,130,127,131,
145,51,51,51,61,58,132,112,111,105,210,226,218,214,244,217,233,8,8,0,4,10,258,
0,0,0,272,0,0]} 1. e4 {[%emt 0:00:16]} c5 {[%emt 0:00:06]} 2. Nf3 {[%emt 0:00:
00]} d6 {[%emt 0:00:06]} 3. d4 {[%emt 0:00:52]} cxd4 {[%emt 0:00:07]} 4. Nxd4 {
[%emt 0:00:06]} Nf6 {[%emt 0:00:05]} 5. Nc3 {[%emt 0:00:08]} a6 {[%emt 0:00:05]
} 6. Bg5 {[%emt 0:00:38]} e6 {[%emt 0:01:16]} 7. f4 {[%emt 0:02:59]} h6 {
[%emt 0:00:43]} 8. Bh4 {[%emt 0:00:17]} Qb6 {[%emt 0:00:35]} 9. a3 {[%emt 0:00:
00][%cal Yd1f3]} Nbd7 {[%emt 0:00:10] B96: Sicilian Najdorf: 6 Bg5 e6 7 f4,
lines other than 7...Qb6 and 7...Be7.} (9... Qxb2 $2 10. Na4 Qxa1 11. Qxa1 $18)
10. Bf2 {[%emt 0:01:24][%cal Yd4e6] Nxe6! is the strong threat.} Qc7 {[%emt 0:
00:00]} (10... Qxb2 $2 11. Na4 Qxa1 12. Qxa1 $18) 11. Qf3 {[%emt 0:02:07]} b5 {
[%emt 0:00:16]} 12. O-O-O {[%emt 0:10:53]} Bb7 {[%emt 0:00:13]} 13. Bd3 {
[%emt 0:01:16]} Nc5 {[%emt 0:01:33]} 14. Rhe1 {[%emt 0:00:28] [#]} d5 $146 {
[%emt 0:04:34]} (14... Be7 $11) ({Predecessor:} 14... Be7 15. g4 d5 16. e5 Nfe4
17. Bxe4 dxe4 18. Qg3 Rc8 19. f5 Qb6 20. h4 b4 21. axb4 Qxb4 {½-½ (59) Della
Morte,G (2361)-Womacka,M (2436) Chess.com INT 2019}) 15. exd5 {[%emt 0:14:02]
Threatens to win with f5.} O-O-O {[%emt 0:00:19][%cal Rf6d5] [#]} 16. Nc6 {
[%emt 0:00:11]} (16. Bxb5 $1 $16 {[%cal Yd4c6] aiming for Nc6!} axb5 (16...
Rxd5 17. Nxd5) 17. Ndxb5) 16... Rxd5 {[%emt 0:05:17]} (16... Nxd3+ $11 17. Rxd3
Rxd5 18. Nxd5 Nxd5) 17. Nxd5 $16 {[%emt 0:05:37] The board is on fire.} Nxd5 {
[%emt 0:02:13][%cal Yf6d5,Yd5c3,Yc3d1]} 18. Bxc5 {[%emt 0:04:53]} Bxc5 {
[%emt 0:01:28]} 19. Ne5 {[%emt 0:02:28]} Nc3 {[%emt 0:39:46] Prevents Be4.} 20.
Qg3 {[%emt 0:04:30]} ({White should try} 20. Be4 $16 Nxe4 21. Rd7 (21. Rxe4 Rd8
$16)) 20... Nxd1 $14 {[%emt 0:00:48]} 21. Qxg7 {[%emt 0:04:11]} Rf8 {[%emt 0:
02:31][%cal Yd1b2]} 22. Kxd1 {[%emt 0:04:34]} Qd8 {[%emt 0:08:07]} (22... f6
$14 23. Qxc7+ Kxc7) 23. Kc1 $16 {[%emt 0:06:44] White is more active.} Qd4 {
[%emt 0:07:20]} 24. g3 {[%emt 0:01:23]} (24. Qxh6 Bxg2 25. f5 Qf2 $14) 24... b4
{[%emt 0:09:45]} (24... f6 $16) 25. axb4 $18 {[%emt 0:08:21]} (25. Qxh6 $2 bxa3
26. bxa3 Bxa3+ 27. Kd1 f6 $19) 25... Qxb4 {[%emt 0:01:58][%cal Rb4e1]} 26. c3 {
[%emt 0:07:25]} Qa4 {[%emt 0:00:07]} 27. Nxf7 {[%emt 0:00:19]} (27. Qxh6 $6 Rd8
$16) 27... Bd5 {[%emt 0:04:46]} 28. Ne5 $2 {[%emt 0:01:36]} (28. Nxh6 Qa1+ 29.
Bb1 Ba2 $11) (28. Qg6 $18) 28... Rd8 $11 {[%emt 0:00:10] White must now
prevent ...Qa1+.} 29. Qh7 {[%emt 0:04:14]} ({Avoid the trap} 29. Qxh6 $2 Qa1+
30. Bb1 Ba3 $1 $19) 29... Bf2 {[%emt 0:03:19] Hoping for ...Qa1+.} 30. Re2 {
[%emt 0:07:44]} Bb6 {[%emt 0:00:06]} (30... Qa1+ $11 {and Black has nothing to
worry.} 31. Kc2 (31. Bb1 $2 Ba2 $19) 31... Bc5) 31. Re1 {[%emt 0:00:35]} ({
But not} 31. Qxh6 $2 Bb3 32. Qxe6+ Bxe6 $19) 31... Bf2 {[%emt 0:00:14] A
strong pair of Bishops.} 32. Re2 {[%emt 0:00:04]} Bb6 {[%emt 0:00:04] [#]
Strongly threatening ...Bb3.} 33. Re1 $2 {[%emt 0:00:04]} ({Don't blunder} 33.
Qxh6 $2 Bb3 34. Qxe6+ Bxe6 $19) ({White has to play} 33. Qe7 $1 $18) 33... Bf2
{[%emt 0:00:05] Weighted Error Value: White=0.51/Black=0.38} 1/2-1/2

[Event "44th Chess Olympiad Open 2022"]
[Site "Chennai"]
[Date "2022.08.06"]
[Round "8.17"]
[White "Carlsen, Magnus"]
[Black "Pechac, Jergus"]
[Result "1/2-1/2"]
[WhiteElo "2864"]
[BlackElo "2594"]
[Annotator "TA"]
[PlyCount "83"]
[EventDate "2022.??.??"]
[TimeControl "60"]

{[%evp 9,83,-6,0,-3,6,10,7,8,25,10,19,14,7,6,42,19,29,17,30,35,51,37,41,37,81,
32,40,29,69,71,64,78,77,83,96,67,70,0,0,0,0,0,11,16,49,49,60,53,58,66,37,0,0,0,
0,0,0,0,0,0,0,0,0,-11,0,0,0,0,0,0,0,0,0,0,0,0]} 1. c4 {[%emt 0:00:12]} e5 {
[%emt 0:00:08]} 2. e3 {[%emt 0:01:23]} Nf6 {[%emt 0:00:08]} 3. Nc3 {[%emt 0:00:
00]} Nc6 {[%emt 0:00:21]} 4. Qb3 {[%emt 0:01:37]} g6 {[%emt 0:00:45]} 5. d3 {
[%emt 0:02:17]} Bg7 {[%emt 0:00:11]} 6. g3 {[%emt 0:01:12] A25: English
Opening vs King's Indian with ...Nc6 but without early d3.} b6 {[%emt 0:06:59]}
7. Bg2 {[%emt 0:00:55]} Bb7 {[%emt 0:00:16][%cal Yc6d4] [#] ...Nd4! is the
strong threat.} 8. Qd1 $146 {[%emt 0:01:07]} ({Predecessor:} 8. Nf3 O-O 9. O-O
Qe7 10. e4 d6 11. Bg5 Qd7 12. Nd5 Ne8 13. Qa4 a6 14. Rad1 {1-0 (44) Stripunsky,
A (2561)-Shetty,A (2368) Arlington 2015}) 8... Qe7 {[%emt 0:07:59]} 9. Nge2 {
[%emt 0:01:15]} h5 {[%emt 0:04:36]} 10. h3 {[%emt 0:13:17]} h4 {[%emt 0:07:12]}
11. g4 {[%emt 0:00:13]} Nd8 {[%emt 0:00:09][%cal Yc6d8,Yd8b7,Yb7c5]} 12. Bxb7 {
[%emt 0:07:39]} Nxb7 {[%emt 0:00:06]} 13. e4 {[%emt 0:00:10]} Nc5 {[%emt 0:04:
12]} 14. Be3 {[%emt 0:06:31]} Ne6 {[%emt 0:02:09]} 15. Qd2 {[%emt 0:00:00]} c6
{[%emt 0:02:23][%cal Yd7d5]} 16. O-O-O {[%emt 0:04:00]} O-O-O {[%emt 0:04:28]}
17. d4 {[%emt 0:03:47]} (17. f4 $16) 17... exd4 {[%emt 0:15:02]} 18. Nxd4 {
[%emt 0:03:13]} Nc5 {[%emt 0:00:06]} 19. Bg5 {[%emt 0:07:17]} Ne6 {[%emt 0:01:
41]} 20. Nxe6 {[%emt 0:03:21]} dxe6 {[%emt 0:00:25]} 21. Qe2 {[%emt 0:01:14]
And now e5 would win.} e5 {[%emt 0:17:24]} 22. Rxd8+ {[%emt 0:00:00]} Rxd8 {
[%emt 0:00:08]} 23. Bxh4 {[%emt 0:00:34]} (23. f3 $14) 23... Bh6+ $1 $11 {
[%emt 0:03:31]} 24. g5 {[%emt 0:03:14]} Nd7 {[%emt 0:00:07]} 25. Qg4 {[%emt 0:
01:01]} Bf8 {[%emt 0:00:13]} 26. Bg3 {[%emt 0:01:02]} Kc7 {[%emt 0:00:00]} 27.
Rd1 {[%emt 0:00:51]} Qb4 {[%emt 0:01:10]} 28. Qe2 {[%emt 0:03:21]} Qe7 {
[%emt 0:02:18]} 29. h4 {[%emt 0:01:15]} Qe6 {[%emt 0:00:08]} 30. f4 {[%emt 0:
00:00]} exf4 {[%emt 0:01:12] The position is equal.} 31. Bxf4+ {[%emt 0:00:02]}
Ne5 {[%emt 0:01:15]} 32. Rxd8 {[%emt 0:10:56]} Kxd8 {[%emt 0:00:04]} 33. b3 {
[%emt 0:00:39]} Bd6 {[%emt 0:00:51]} 34. Qd2 {[%emt 0:02:39]} Ke7 {[%emt 0:00:
00][%cal Ye5d3]} 35. Kc2 {[%emt 0:00:17] Inhibits Nd3.} Qg4 {[%emt 0:02:19]}
36. Qf2 {[%emt 0:06:36]} Qf3 {[%emt 0:02:53]} 37. Be3 {[%emt 0:02:46]} ({
Of course not} 37. Qd2 {[#]} Nxc4 $1 38. Bxd6+ Nxd6 $15) 37... Ke6 {[%emt 0:00:
00]} 38. Qxf3 {[%emt 0:01:17]} Nxf3 {[%emt 0:00:07]} 39. Bf2 {[%emt 0:00:06]
Prevents Bg3.} Ke5 {[%emt 0:01:26]} 40. Bg3+ {[%emt 0:00:07]} Ke6 {[%emt 0:00:
00]} 41. Bf2 {[%emt 0:30:54]} Ke5 {[%emt 0:30:27]} 42. Bg3+ {[%emt 0:00:00]
Weighted Error Value: White=0.06 (flawless) /Black=0.07 (flawless)} 1/2-1/2

[Event "44th Chess Olympiad Open 2022"]
[Site "Chennai"]
[Date "2022.08.06"]
[Round "8.17"]
[White "Hammer, Jon Ludvig"]
[Black "Druska, Juraj"]
[Result "1-0"]
[WhiteElo "2638"]
[BlackElo "2519"]
[Annotator "TA"]
[PlyCount "69"]
[EventDate "2022.??.??"]
[TimeControl "60"]

{[%evp 10,69,26,25,30,29,28,28,32,28,43,16,54,36,60,50,48,44,70,63,62,62,70,51,
79,74,70,79,88,10,83,26,22,29,24,27,29,29,29,20,8,13,16,22,47,56,63,63,90,45,
46,37,50,42,45,56,64,47,1294,1314,29995,29996]} 1. e4 {[%emt 0:00:03]} c5 {
[%emt 0:00:16]} 2. Nf3 {[%emt 0:00:05]} Nc6 {[%emt 0:00:11]} 3. Bb5 {[%emt 0:
00:00]} e6 {[%emt 0:00:14]} 4. O-O {[%emt 0:00:46]} Nge7 {[%emt 0:00:12]} 5. d4
{[%emt 0:00:09]} cxd4 {[%emt 0:00:32]} 6. Nxd4 {[%emt 0:00:09]} Ng6 {[%emt 0:
00:00] B30: Sicilian: 2...Nc6 3 Bb5, lines without ...g6.} 7. Be3 {[%emt 0:00:
00]} Be7 {[%emt 0:00:08]} 8. Be2 {[%emt 0:02:06]} O-O {[%emt 0:00:13] White
has an edge.} 9. c4 {[%emt 0:00:14]} b6 {[%emt 0:00:08] [#] is now more
promising than 9...Nxd4.} 10. Nb5 $1 $146 {[%emt 0:12:03] An important novelty.
} ({Predecessor:} 10. Nc3 Bb7 11. f3 Qb8 12. Nxc6 Bxc6 13. Qd2 f5 14. exf5 Rxf5
15. Bd3 Rh5 16. f4 {½-½ (40) Vokhidov,S (2529)-Tabatabaei,M (2613) Tornelo
INT 2021}) 10... d6 {[%emt 0:08:13]} 11. N1c3 {[%emt 0:00:56]} Bb7 {[%emt 0:05:
37]} 12. Qd2 {[%emt 0:01:59]} a6 {[%emt 0:02:02]} 13. Na3 {[%emt 0:00:00]} Rb8
{[%emt 0:17:13]} 14. f4 {[%emt 0:01:15]} Re8 {[%emt 0:07:37]} 15. Rfd1 {
[%emt 0:05:37]} Nf8 {[%emt 0:13:33]} 16. Rac1 {[%emt 0:00:28]} Ba8 {[%emt 0:01:
01]} 17. Bf3 {[%emt 0:03:20]} Qc8 {[%emt 0:01:20] [#]} 18. Nd5 $1 {[%emt 0:18:
19]} Bd8 {[%emt 0:00:22] [#]} 19. b4 {[%emt 0:09:49] 0x0.0002d975c2a0dp-1022s
more active pieces.} Nd7 {[%emt 0:00:45] [#]} ({Don't play} 19... exd5 20. cxd5
Qd7 21. dxc6 Bxc6 22. Nc4 $16 (22. Qxd6 Qxd6 23. Rxd6 Bxe4 $11)) (19... Qd7 $1
$11 {remains equal.}) 20. Nb5 {[%emt 0:00:38]} axb5 $11 {[%emt 0:04:07]} 21.
cxb5 {[%emt 0:00:09]} exd5 {[%emt 0:00:16]} 22. bxc6 {[%emt 0:04:00] Threatens
to win with Bg4.} Nf6 {[%emt 0:03:48] Inhibits Bg4.} ({But not} 22... dxe4 23.
Bg4 (23. cxd7 Qxd7 24. Be2 Be7 $17) 23... Bxc6 24. b5 $16 (24. Qxd6 Be7 $11)) (
22... Bxc6 $2 23. exd5 Nf6 24. dxc6 $18) 23. exd5 {[%emt 0:00:10]} b5 $1 {
[%emt 0:01:54][%cal Ye8e3]} 24. Ba7 {[%emt 0:06:37]} Bb6+ {[%emt 0:09:41]} 25.
Bxb6 {[%emt 0:00:06]} Rxb6 {[%emt 0:00:03]} 26. Re1 {[%emt 0:00:37]} Kf8 {
[%emt 0:03:38]} 27. Rxe8+ {[%emt 0:02:10]} Nxe8 {[%emt 0:00:00]} 28. Qc2 {
[%emt 0:07:00]} h6 {[%emt 0:01:41]} 29. Qh7 {[%emt 0:03:25] Black must now
prevent Qh8+. White has strong compensation.} Nf6 {[%emt 0:00:41]} 30. Qh8+ {
[%emt 0:00:01]} Ng8 {[%emt 0:00:08]} 31. Re1 {[%emt 0:00:03]} Ra6 {[%emt 0:08:
56]} 32. Be4 $40 {[%emt 0:00:43] Intending Bh7 and mate. White has some attack.
} f5 $1 {[%emt 0:00:11]} 33. Bf3 {[%emt 0:00:17][%cal Ye1e7] aiming for Re7!}
Bxc6 $2 {[%emt 0:00:19]} 34. dxc6 $18 {[%emt 0:00:13]} Rxc6 {[%emt 0:00:04]}
35. Bd5 {[%emt 0:00:13] Weighted Error Value: White=0.12 (very precise) /
Black=0.29 (precise)} 1-0